bitfinex-derivatives/quotes_SOLF0:USTF0_20251117
["timestamp","ask_amount","ask_price","bid_price","bid_amount"]
[1763386150131,0.04910732,140.6,140.59,3.13]
[1763386150931,0.89,140.66,140.59,3.13]
[1763386151134,0.89,140.7,140.6,3.13]
[1763386151623,0.89,140.68,140.56,3.13]
[1763386151820,0.05340991,140.63,140.61,0.04677063]
[1763386152020,0.04693506,140.63,140.61,0.04677063]
[1763386152224,0.93693506,140.63,140.61,0.04677063]
[1763386155633,0.04693506,140.63,140.61,0.04677063]
[1763386156642,0.93693506,140.63,140.61,0.04677063]
[1763386156827,0.04693506,140.63,140.61,0.04677063]
[1763386157726,0.93693506,140.63,140.61,0.04677063]
[1763386160640,0.84,140.62,140.52,3.11]
[1763386161340,0.84,140.61,140.52,3.11]
[1763386161734,0.04703607,140.58,140.55,0.04853974]
[1763386161933,0.04703607,140.58,140.55,3.15853974]
[1763386162131,0.84,140.64,140.56,3.11]
[1763386163243,0.88493578,140.61,140.59,0.04509168]
[1763386163546,0.05048924,140.61,140.59,3.15509168]
[1763386168536,5.12078259,140.66,140.61,3.03]
[1763386168841,5.12078259,140.68,140.61,3.03]
[1763386169042,7.19997468,140.73,140.61,3.03]
[1763386169347,0.84,140.73,140.63,3.03]
[1763386169551,0.84,140.73,140.67,0.04848073]
[1763386169552,0.05231912,140.69,140.67,0.04848073]
[1763386169748,0.05231912,140.69,140.67,3.07848073]
[1763386169945,5.12078259,140.74,140.68,3.03]
[1763386170147,7.19997468,140.79,140.68,3.03]
[1763386170449,0.84,140.78,140.68,3.03]
[1763386171159,0.04546539,140.74,140.72,0.05373803]
[1763386172945,0.04546539,140.74,140.72,3.08373803]
[1763386175235,0.04546539,140.74,140.72,0.05373803]
[1763386175440,0.88546539,140.74,140.72,0.05373803]
[1763386175843,0.04546539,140.74,140.72,3.08373803]
[1763386178146,0.04546539,140.74,140.72,0.05373803]
[1763386178348,0.88546539,140.74,140.72,0.05373803]
[1763386182756,0.88546539,140.74,140.68,3.03]
[1763386183055,0.88546539,140.74,140.63,3.03]
[1763386183255,11.24733175,140.75,140.63,3.03]
[1763386183256,0.84,140.72,140.63,3.03]
[1763386183655,0.05466529,140.69,140.66,3.07489432]
[1763386187159,0.89466529,140.69,140.66,0.04489432]
[1763386187367,0.89466529,140.69,140.66,3.07489432]
[1763386187665,0.05466529,140.69,140.66,3.07489432]
[1763386194464,0.89466529,140.69,140.66,0.04489432]
[1763386194854,0.05466529,140.69,140.66,0.04489432]
[1763386195062,0.05466529,140.69,140.66,3.07489432]
[1763386197674,0.89466529,140.69,140.66,3.07489432]
[1763386197871,0.89466529,140.69,140.66,0.04489432]
[1763386198671,0.89466529,140.69,140.63,3.09]
[1763386199563,0.89466529,140.69,140.65,3.13852799]
[1763386199764,0.88607795,140.68,140.66,0.05288534]
[1763386200066,0.88661244,140.68,140.66,0.05288534]
[1763386200468,0.84,140.67,140.58,3.09]
[1763386201160,4.89408419,140.68,140.58,3.09]
[1763386201473,0.04614756,140.64,140.63,3.09]
[1763386201671,0.0502656,140.65,140.63,3.09]
[1763386201873,0.04967049,140.65,140.63,3.13696073]
[1763386206678,0.04967049,140.65,140.63,0.04696073]
[1763386207572,0.04967049,140.65,140.63,3.13696073]
[1763386208275,4.89408419,140.71,140.63,3.13696073]
[1763386208481,6.43906349,140.73,140.64,3.09]
[1763386208673,12.22314768,140.74,140.64,3.09]
[1763386208975,0.89,140.74,140.65,3.09]
[1763386209186,11.33314768,140.76,140.65,3.09]
[1763386209372,0.04968373,140.72,140.7,3.09]
[1763386209577,0.04734444,140.72,140.7,3.14189886]
[1763386210370,6.43906349,140.78,140.7,3.14189886]
[1763386210581,6.43906349,140.79,140.7,3.14189886]
[1763386210878,6.43906349,140.79,140.7,3.09]
[1763386211079,5.78408419,140.8,140.7,3.09]
[1763386211270,0.04864307,140.76,140.74,0.05135217]
[1763386211575,0.04864307,140.76,140.75,3.09]
[1763386212485,4.89408419,140.81,140.75,3.09]
[1763386212777,4.88183221,140.81,140.75,3.09]
[1763386213367,6.43906349,140.84,140.75,3.09]
[1763386213572,4.88183221,140.85,140.72,10.33688594]
[1763386213573,0.05192587,140.79,140.78,3.14439088]
[1763386213776,0.05061365,140.8,140.78,3.14439088]
[1763386213986,0.00489398,140.8,140.78,3.14439088]
[1763386214280,0.99,140.86,140.78,3.14439088]
[1763386214474,12.3508957,140.89,140.78,3.14439088]
[1763386214675,1.03,140.89,140.78,3.09]
[1763386215071,1.03,140.89,140.79,3.09]
[1763386215274,0.05442632,140.85,140.83,0.05315778]
[1763386215479,0.05442632,140.85,140.84,3.09]
[1763386216376,1.03,140.92,140.84,3.09]
[1763386216579,4.88183221,140.95,140.84,3.09]
[1763386216776,5.96183221,140.96,140.85,3.09]
[1763386217078,1.08,140.98,140.85,3.09]
[1763386217477,0.05307313,140.93,140.91,3.25]
[1763386217680,0.05167715,140.93,140.91,3.30349146]
[1763386221379,1.12167715,140.93,140.91,0.05349146]
[1763386222789,0.05167715,140.93,140.91,0.05349146]
[1763386223184,1.12167715,140.93,140.91,0.05349146]
[1763386223388,1.12167715,140.93,140.75,36.2]
[1763386223389,1.07,140.92,140.84,3.25]
[1763386223587,10.33688594,140.97,140.84,3.25]
[1763386223884,1.07,140.95,140.84,3.25]
[1763386224488,0.04545139,140.91,140.89,3.25]
[1763386226590,1.11545139,140.91,140.88,0.0485196]
[1763386228494,1.06,140.9,140.81,3.28]
[1763386229382,1.10963558,140.87,140.84,0.05280409]
[1763386229896,1.06,140.84,140.75,3.28]
[1763386230888,0.04762517,140.81,140.78,0.05004944]
[1763386231085,1.10762517,140.81,140.78,0.05004944]
[1763386231594,1.06,140.8,140.78,0.05004944]
[1763386232386,0.04762517,140.81,140.78,3.33004944]
[1763386234795,1.10762517,140.81,140.78,0.05004944]
[1763386239089,1.10762517,140.81,140.69,3.28]
[1763386239090,10.33688594,140.79,140.69,3.28]
[1763386239298,1.06,140.78,140.63,3.28]
[1763386239496,10.33688594,140.76,140.63,3.28]
[1763386239704,1.06,140.75,140.63,3.28]
[1763386240091,1.06,140.78,140.68,0.05221217]
[1763386240400,0.05212354,140.74,140.72,0.05458649]
[1763386240598,0.04870158,140.74,140.72,0.04874101]
[1763386240800,0.04870158,140.74,140.72,3.32874101]
[1763386241304,1.06,140.82,140.73,3.28]
[1763386241900,1.06,140.85,140.73,3.28]
[1763386242305,0.05409036,140.8,140.78,3.33393463]
[1763386242502,0.05414424,140.8,140.78,3.33393463]
[1763386243398,1.06,140.9,140.8,3.28]
[1763386243599,10.33688594,140.95,140.8,3.28]
[1763386243808,1.06,140.94,140.82,3.28]
[1763386244307,0.04901736,140.89,140.87,3.32865276]
[1763386244511,0.04781892,140.89,140.87,3.32865276]
[1763386244714,1.06,140.94,140.87,3.32865276]
[1763386244912,6.392,140.91,140.87,3.32865276]
[1763386245517,6.3924,140.9,140.87,3.32865276]
[1763386245815,6.4391776,140.9,140.87,3.32865276]
[1763386246312,6.3929,140.89,140.87,3.32865276]
[1763386247213,0.0467776,140.9,140.82,10.33688594]
[1763386247411,3.31,140.91,140.76,10.33688594]
[1763386247600,3.31,140.91,140.79,10.33688594]
[1763386247807,3.31,140.94,140.79,10.33688594]
[1763386248006,3.31,140.94,140.82,10.33688594]
[1763386248410,0.05215299,140.89,140.87,0.04537784]
[1763386248606,0.05450505,140.89,140.87,0.04537784]
[1763386249115,0.00450505,140.89,140.87,0.04537784]
[1763386249415,0.00450505,140.89,140.88,3.28]
[1763386250213,0.00450505,140.89,140.88,4.7]
[1763386251216,3.31,140.98,140.89,3.28]
[1763386252114,0.05111775,140.95,140.92,0.05045187]
[1763386254019,0.05111775,140.95,140.92,3.33045187]
[1763386255414,0.05111775,140.95,140.92,0.05045187]
[1763386255710,3.36111775,140.95,140.92,0.05045187]
[1763386258221,0.05111775,140.95,140.92,3.15045187]
[1763386260410,0.05111775,140.95,140.92,0.05045187]
[1763386260411,3.37111775,140.95,140.92,0.05045187]
[1763386260738,3.32,140.94,140.82,3.1]
[1763386261014,3.32,140.91,140.82,3.1]
[1763386261623,3.37272339,140.88,140.85,0.04637309]
[1763386261824,3.36594714,140.88,140.85,0.04967595]
[1763386263319,3.32,140.87,140.78,3.1]
[1763386263621,56.8142131,140.95,140.75,5.91514961]
[1763386263622,3.32,140.85,140.75,3.1]
[1763386264316,0.05428542,140.81,140.79,0.04906358]
[1763386264522,3.37428542,140.81,140.79,0.04906358]
[1763386264723,3.37428542,140.81,140.71,3.1]
[1763386264724,9.23514961,140.8,140.71,3.1]
[1763386264922,9.23514961,140.82,140.71,3.1]
[1763386265125,3.32,140.82,140.73,3.1]
[1763386265425,3.32,140.86,140.76,3.1]
[1763386265626,0.04712968,140.82,140.8,0.04844323]
[1763386265830,3.36712968,140.82,140.8,0.04844323]
[1763386266725,0.04712968,140.82,140.8,0.04844323]
[1763386267028,0.04712968,140.82,140.8,3.14844323]
[1763386267924,3.36712968,140.82,140.8,0.04844323]
[1763386268231,3.32,140.81,140.72,3.1]
[1763386269028,3.32,140.78,140.68,3.1]
[1763386269222,0.04525286,140.74,140.72,0.0544674]
[1763386270130,0.04525286,140.74,140.72,3.1544674]
[1763386272843,9.23514961,140.82,140.72,3.1544674]
[1763386273033,9.23514961,140.82,140.72,3.1]
[1763386273641,3.32,140.81,140.76,0.04872002]
[1763386273945,0.0498943,140.78,140.76,0.04872002]
[1763386274344,0.0498943,140.78,140.76,3.14872002]
[1763386275145,3.3698943,140.78,140.76,0.04872002]
[1763386275842,3.3698943,140.78,140.66,3.1]
[1763386276047,3.32,140.78,140.66,3.1]
[1763386276548,3.32,140.75,140.66,3.1]
[1763386276745,0.04826313,140.72,140.69,0.0500106]
[1763386277445,0.04826313,140.72,140.69,3.1600106]
[1763386279249,3.14826313,140.72,140.69,0.0500106]
[1763386279449,3.1,140.7,140.61,3.11]
[1763386279650,3.1,140.7,140.57,3.11]
[1763386279949,5.91514961,140.68,140.57,3.11]
[1763386280146,9.01514961,140.65,140.57,3.11]
[1763386280554,0.04708268,140.62,140.6,0.04867111]
[1763386287058,3.14708268,140.62,140.6,0.04867111]
[1763386287857,3.14708268,140.62,140.52,5.91514961]
[1763386287858,3.03,140.6,140.41,3.09]
[1763386288152,3.03,140.51,140.39,3.09]
[1763386288748,3.03,140.48,140.39,3.09]
[1763386288957,0.05450475,140.46,140.39,3.09]
[1763386291160,3.08450475,140.46,140.39,3.09]
[1763386291361,3.08450475,140.46,140.39,9.00514961]
[1763386291657,0.05450475,140.46,140.4,3.09]
[1763386292162,3.08450475,140.46,140.37,5.12003734]
[1763386292353,0.0448515,140.43,140.37,2.03003734]
[1763386292762,3.0748515,140.43,140.37,2.03003734]
[1763386297265,0.0448515,140.43,140.37,5.12003734]
[1763386297862,0.0448515,140.43,140.38,3.09]
[1763386300665,0.0448515,140.43,140.39,3.09]
[1763386302565,0.0448515,140.43,140.37,2.03003734]
[1763386302966,0.0448515,140.43,140.37,5.12003734]
[1763386303166,0.0448515,140.43,140.38,3.09]
[1763386304174,0.0448515,140.43,140.39,3.09]
[1763386304371,3.03,140.51,140.42,3.09]
[1763386305276,3.03,140.51,140.41,5.91514961]
[1763386305277,0.05301341,140.48,140.45,3.13939634]
[1763386305766,3.03,140.54,140.45,3.13939634]
[1763386306074,26.91514961,140.58,140.45,3.09]
[1763386306075,3.03,140.57,140.45,3.09]
[1763386306773,0.05238224,140.52,140.5,0.04969119]
[1763386307073,0.04702042,140.52,140.5,0.04969119]
[1763386307270,0.04702042,140.52,140.5,3.13969119]
[1763386307873,3.07702042,140.52,140.5,0.04969119]
[1763386308273,3.07702042,140.52,140.46,3.09]
[1763386308669,0.04702042,140.52,140.46,3.09]
[1763386309282,3.07702042,140.52,140.48,0.05130114]
[1763386309476,3.08257105,140.51,140.39,3.09]
[1763386309672,3.03,140.51,140.39,3.09]
[1763386310479,0.04742372,140.46,140.39,3.09]
[1763386311383,0.04742372,140.46,140.42,3.09]
[1763386311682,0.04750417,140.45,140.42,3.09]
[1763386311872,3.03,140.54,140.42,3.09]
[1763386313078,0.04709704,140.49,140.47,3.13591235]
[1763386313281,0.04897756,140.49,140.47,3.13591235]
[1763386313879,0.04897756,140.49,140.47,0.04591235]
[1763386316488,3.07897756,140.49,140.47,0.04591235]
[1763386316788,3.07897756,140.49,140.4,3.09]
[1763386317080,3.03,140.49,140.4,3.09]
[1763386317281,3.03,140.49,140.37,2.03003734]
[1763386317689,0.05249435,140.44,140.37,2.03003734]
[1763386318388,3.29249435,140.44,140.37,2.03003734]
[1763386318885,3.24,140.43,140.37,2.03003734]
[1763386320184,0.05249435,140.44,140.37,5.23003734]
[1763386320384,0.05249435,140.44,140.38,3.2]
[1763386324394,0.05249435,140.44,140.39,3.2]
[1763386324592,9.956407,140.48,140.41,3.2]
[1763386324790,4.9722064,140.49,140.44,3.2]
[1763386325094,4.9722064,140.52,140.45,3.2]
[1763386325287,4.9722064,140.55,140.45,3.2]
[1763386325485,11.2336801,140.55,140.45,3.2]
[1763386325686,0.04783046,140.51,140.5,3.2]
[1763386325884,0.04955914,140.52,140.49,0.04891711]
[1763386326785,8.2122064,140.51,140.49,0.04891711]
[1763386327190,4.9722064,140.5,140.49,0.04891711]
[1763386327791,0.04955914,140.52,140.49,3.24891711]
[1763386327992,5.02176554,140.52,140.49,3.24891711]
[1763386328196,0.04955914,140.52,140.49,3.24891711]
[1763386328395,5.02176554,140.52,140.49,3.24891711]
[1763386328892,0.04955914,140.52,140.49,3.24891711]
[1763386329498,6.2614737,140.59,140.5,3.2]
[1763386329689,6.2614737,140.59,140.51,3.2]
[1763386330492,0.04825185,140.56,140.55,3.2]
[1763386331293,3.24,140.55,140.45,3.2]
[1763386331494,9.5014737,140.55,140.45,3.2]
[1763386331690,6.2614737,140.55,140.45,3.2]
[1763386331888,6.2614737,140.54,140.45,3.2]
[1763386332400,0.04641446,140.51,140.48,0.05423536]
[1763386332998,9.54788816,140.51,140.48,0.05423536]
[1763386333502,9.5014737,140.5,140.48,0.05423536]
[1763386333694,3.24,140.49,140.41,3.2]
[1763386334399,6.2614737,140.5,140.41,3.2]
[1763386334699,0.0471734,140.47,140.41,3.2]
[1763386335490,3.24,140.46,140.38,3.2]
[1763386335695,0.05014106,140.43,140.38,3.2]
[1763386336095,0.05014106,140.43,140.23,99.9087]
[1763386336096,3.24,140.42,140.3,3.2]
[1763386336304,0.05361814,140.37,140.3,3.2]
[1763386336995,11.11227609,140.44,140.32,3.2]
[1763386337196,6.2614737,140.44,140.32,3.2]
[1763386337501,6.2614737,140.45,140.35,3.26]
[1763386337694,9.2914737,140.45,140.35,3.26]
[1763386337890,0.04555536,140.41,140.39,0.04996007]
[1763386338094,0.05453571,140.41,140.39,0.04996007]
[1763386339204,3.08453571,140.41,140.39,0.04996007]
[1763386339411,3.03,140.4,140.31,3.26]
[1763386339706,6.2614737,140.42,140.31,3.26]
[1763386339900,9.2914737,140.42,140.31,3.26]
[1763386340203,3.03,140.42,140.31,3.26]
[1763386340506,0.05135367,140.38,140.31,3.26]
[1763386341202,0.05135367,140.38,140.32,3.26]
[1763386341406,3.03,140.46,140.37,3.26]
[1763386341803,4.85080239,140.5,140.37,3.26]
[1763386342103,3.03,140.49,140.38,3.26]
[1763386342309,3.03,140.49,140.31,6.61774565]
[1763386342512,0.0541584,140.41,140.39,0.04567389]
[1763386342716,0.04675754,140.41,140.4,3.26]
[1763386343907,0.04675754,140.41,140.39,0.04615821]
[1763386344609,4.49675754,140.41,140.39,0.04615821]
[1763386344916,3.03,140.4,140.39,0.04615821]
[1763386345709,0.04675754,140.41,140.39,0.04615821]
[1763386346115,3.07675754,140.41,140.39,0.04615821]
[1763386346716,0.04675754,140.41,140.39,0.04615821]
[1763386347617,3.31675754,140.41,140.39,0.04615821]
[1763386348313,3.27,140.4,140.39,0.04615821]
[1763386348719,13.65063415,140.4,140.39,0.04615821]
[1763386348917,3.27,140.39,140.31,3.35]
[1763386349121,3.27,140.38,140.31,3.35]
[1763386349811,3.32183817,140.36,140.31,3.35]
[1763386350006,3.32183817,140.36,140.24,3.35]
[1763386350313,0.05079774,140.31,140.24,3.35]
[1763386351121,0.05079774,140.31,140.25,3.35]
[1763386351625,4.82775089,140.39,140.27,3.35]
[1763386351920,3.27,140.4,140.28,3.35]
[1763386352118,13.65063415,140.43,140.31,3.35]
[1763386352316,3.27,140.43,140.31,3.35]
[1763386352724,0.04701238,140.38,140.36,3.40116382]
[1763386352925,0.04983619,140.38,140.36,3.40116382]
[1763386354218,0.04983619,140.38,140.36,0.05116382]
[1763386355020,3.31983619,140.38,140.36,0.05116382]
[1763386356023,3.31983619,140.38,140.29,3.35]
[1763386356223,3.27,140.38,140.29,3.35]
[1763386356920,0.04497857,140.35,140.29,3.35]
[1763386358223,0.04497857,140.35,140.22,90.07063415]
[1763386358224,0.04497857,140.35,140.31,3.35]
[1763386358423,0.0503498,140.34,140.31,3.35]
[1763386358724,0.04810357,140.34,140.31,3.35]
[1763386359327,3.27,140.41,140.31,3.40042928]
[1763386359525,3.27,140.41,140.32,3.35]
[1763386359829,3.27,140.46,140.32,3.35]
[1763386360019,3.27,140.45,140.34,3.35]
[1763386360327,0.05024671,140.41,140.38,0.04563979]
[1763386360525,3.32024671,140.41,140.38,0.04563979]
[1763386362221,3.32024671,140.41,140.3,3.35]
[1763386362427,3.27,140.41,140.3,3.35]
[1763386363229,0.05348899,140.37,140.34,3.37083909]
[1763386368128,3.27,140.46,140.35,3.35]
[1763386368332,3.27,140.5,140.36,3.35]
[1763386368629,3.27,140.5,140.41,3.35]
[1763386369224,0.04492814,140.47,140.44,0.04532418]
[1763386370125,0.04492814,140.47,140.44,3.39532418]
[1763386372626,0.04492814,140.47,140.44,0.04532418]
[1763386372922,3.31492814,140.47,140.44,0.04532418]
[1763386373524,0.04492814,140.47,140.44,0.04532418]
[1763386373726,0.04492814,140.47,140.44,3.39532418]
[1763386377228,0.04492814,140.47,140.44,0.04532418]
[1763386377435,3.15492814,140.47,140.44,0.04532418]
[1763386377629,3.15492814,140.47,140.4,3.09]
[1763386378736,3.15492814,140.47,140.42,0.0290039]
[1763386379236,3.11,140.45,140.33,3.09]
[1763386380132,0.05090885,140.4,140.33,3.09]
[1763386380943,0.05090885,140.4,140.35,3.09]
[1763386381639,3.16090885,140.4,140.35,3.09]
[1763386382637,0.05090885,140.4,140.35,3.09]
[1763386385039,3.11,140.48,140.37,3.09]
[1763386385337,3.11,140.48,140.38,3.09]
[1763386385940,3.16068853,140.44,140.42,0.05090885]
[1763386386440,0.05068853,140.44,140.42,0.05090885]
[1763386387441,3.16068853,140.44,140.42,0.05090885]
[1763386387632,4.53,140.43,140.42,0.05090885]
[1763386387837,3.11,140.4,140.3,3.09]
[1763386388139,3.11,140.4,140.26,3.09]
[1763386388744,0.05029074,140.34,140.26,3.09]
[1763386389535,3.16029074,140.34,140.26,3.09]
[1763386389728,0.05029074,140.34,140.26,3.09]
[1763386391346,0.05029074,140.34,140.24,4.97182604]
[1763386391347,0.05029074,140.34,140.3,3.09]
[1763386391545,0.05017813,140.33,140.3,3.09]
[1763386391739,0.05356187,140.33,140.3,3.09]
[1763386392144,0.05356187,140.33,140.29,3.09]
[1763386392343,3.16356187,140.33,140.25,3.09]
[1763386393734,3.16356187,140.33,140.2,3.09]
[1763386393934,0.04655785,140.28,140.2,3.09]
[1763386394545,0.04655785,140.28,140.2,9.514]
[1763386394750,0.04655785,140.28,140.21,3.09]
[1763386396447,0.04655785,140.28,140.23,3.09]
[1763386398149,0.04655785,140.28,140.25,3.08]
[1763386399144,0.04655785,140.28,140.26,3.08]
[1763386399343,3.07,140.36,140.26,3.08]
[1763386399650,3.07,140.36,140.24,4.97182604]
[1763386399651,3.07,140.36,140.28,3.08]
[1763386400249,0.04713024,140.33,140.31,3.12655785]
[1763386400759,4.53713024,140.33,140.31,0.04655785]
[1763386400944,3.07,140.32,140.31,0.04655785]
[1763386401455,3.11713024,140.33,140.31,0.04655785]
[1763386401662,3.11713024,140.33,140.31,3.12655785]
[1763386401663,0.04713024,140.33,140.31,3.12655785]
[1763386402149,0.04713024,140.33,140.31,0.04655785]
[1763386402550,0.04713024,140.33,140.31,3.12655785]
[1763386403348,3.07,140.4,140.32,3.08]
[1763386403547,4.97182604,140.44,140.32,3.08]
[1763386403548,3.07,140.44,140.32,3.08]
[1763386403948,3.07,140.44,140.36,3.08]
[1763386404153,3.07,140.44,140.32,3.08]
[1763386404349,0.05303475,140.39,140.37,0.05392488]
[1763386404546,0.05031429,140.39,140.37,0.05392488]
[1763386405748,0.05031429,140.39,140.37,3.13392488]
[1763386405962,3.07,140.45,140.37,3.13392488]
[1763386406170,3.07,140.51,140.38,3.08]
[1763386406456,3.07,140.51,140.41,3.08]
[1763386406859,0.05064958,140.47,140.45,0.05472261]
[1763386408063,0.05064958,140.47,140.45,3.35472261]
[1763386409145,0.05064958,140.47,140.45,0.05472261]
[1763386409561,3.27,140.55,140.45,3.35472261]
[1763386409750,3.27,140.55,140.45,3.3]
[1763386410557,3.27,140.61,140.47,3.3]
[1763386410754,0.05262499,140.55,140.53,0.04548493]
[1763386410955,3.3180033,140.55,140.53,0.05205333]
[1763386411947,0.0480033,140.55,140.53,3.35205333]
[1763386412261,0.0480033,140.55,140.53,0.05205333]
[1763386412457,3.3180033,140.55,140.53,0.05205333]
[1763386412763,3.3180033,140.55,140.45,3.3]
[1763386412764,3.27,140.54,140.45,3.3]
[1763386413357,3.27,140.54,140.41,8.27182604]
[1763386413557,3.27,140.54,140.41,3.3]
[1763386413764,0.04988656,140.49,140.41,3.3]
[1763386413966,3.31988656,140.49,140.46,0.04990277]
[1763386414880,3.31988656,140.49,140.35,48.44]
[1763386415174,3.27,140.48,140.35,3.3]
[1763386415969,3.27,140.42,140.4,0.05468916]
[1763386416178,3.32222036,140.42,140.27,3.3]
[1763386416474,3.27,140.39,140.27,3.3]
[1763386417169,0.0492057,140.34,140.32,0.04102747]
[1763386417378,0.04533289,140.34,140.32,3.34102747]
[1763386417762,3.31533289,140.34,140.32,0.04102747]
[1763386419174,3.27,140.32,140.25,3.3]
[1763386419573,3.27,140.32,140.21,3.3]
[1763386420163,4.97182604,140.34,140.18,4.97182604]
[1763386420164,3.27,140.27,140.18,4.97182604]
[1763386420468,0.04655804,140.24,140.19,3.3]
[1763386421274,3.31655804,140.24,140.16,3.3]
[1763386421473,0.04672842,140.21,140.16,3.3]
[1763386422081,3.27,140.33,140.19,3.3]
[1763386423177,0.04629141,140.27,140.25,0.04672843]
[1763386423380,3.32439982,140.27,140.25,0.04672843]
[1763386423575,0.05439982,140.27,140.25,3.34672843]
[1763386423881,0.05439982,140.27,140.25,0.04672843]
[1763386424482,0.05439982,140.27,140.25,3.34672843]
[1763386424784,3.27,140.35,140.26,3.3]
[1763386425878,0.04935493,140.32,140.29,0.05382102]
[1763386426277,3.31935493,140.32,140.29,0.05382102]
[1763386426475,3.31935493,140.32,140.21,8.27182604]
[1763386426689,3.27,140.32,140.17,3.3]
[1763386427689,3.3181856,140.26,140.23,0.04730723]
[1763386427882,3.31694337,140.26,140.23,0.04730723]
[1763386429180,0.04694337,140.26,140.23,3.34730723]
[1763386429387,3.31694337,140.26,140.23,0.04730723]
[1763386429585,0.04694337,140.26,140.23,0.04730723]
[1763386429775,3.31694337,140.26,140.23,0.04730723]
[1763386433085,3.31694337,140.26,140.14,3.3]
[1763386433291,3.27,140.26,140.14,3.3]
[1763386433490,3.27,140.26,140.17,3.3]
[1763386433689,3.27,140.26,140.08,2.03003734]
[1763386433890,3.27,140.26,139.91,22.03869345]
[1763386433891,4.97182604,140.12,139.98,6.56799789]
[1763386434084,4.97182604,140.12,139.96,3.3]
[1763386434281,4.97182604,140.09,139.96,3.3]
[1763386434490,124.0,140.17,139.8,105.18872604]
[1763386434491,4.97182604,140.1,139.95,3.3]
[1763386434692,0.05181613,140.05,139.95,3.3]
[1763386434883,4.97182604,140.15,139.98,3.3]
[1763386435088,4.97182604,140.15,139.99,3.3]
[1763386435289,4.97182604,140.18,140.04,3.3]
[1763386435482,4.97182604,140.21,140.04,3.3]
[1763386435680,4.97182604,140.21,139.93,135.6815]
[1763386435681,4.97182604,140.24,140.07,3.3]
[1763386435885,104.88142604,140.24,140.07,3.3]
[1763386436094,6.4264,140.16,140.14,0.04671899]
[1763386436291,0.05393109,140.16,140.05,3.3]
[1763386436495,104.87232604,140.25,140.08,8.27182604]
[1763386436688,6.426,140.17,140.09,3.3]
[1763386436989,99.9038,140.24,140.09,3.3]
[1763386437196,6.4264,140.16,140.09,3.3]
[1763386437383,0.04881377,140.14,140.09,3.3]
[1763386437582,0.04692484,140.13,140.09,3.3]
[1763386437785,0.05075886,140.12,140.09,3.3]
[1763386437988,6.426,140.16,140.09,3.3]
[1763386438286,0.04575319,140.12,140.09,3.3]
[1763386438484,0.05316379,140.12,140.05,8.00182604]
[1763386438687,104.89462604,140.22,140.05,8.00182604]
[1763386438688,0.05313927,140.1,140.06,3.03]
[1763386438887,0.04705023,140.09,140.06,3.03]
[1763386439088,0.04731406,140.09,140.06,3.03]
[1763386439297,99.9067,140.24,140.09,3.03]
[1763386439503,6.4261,140.16,140.09,3.03]
[1763386439801,12.8476,140.21,140.04,3.03]
[1763386440096,6.4274,140.13,140.04,3.03]
[1763386440297,0.0538655,140.1,140.08,3.03]
[1763386440792,0.0538655,140.1,140.07,0.04838476]
[1763386440984,0.0538655,140.1,139.9,1.24307912]
[1763386441184,6.43,140.08,139.94,8.33579431]
[1763386441390,6.43,140.08,139.98,8.33579431]
[1763386441599,99.9474,140.18,139.98,8.33579431]
[1763386441789,6.4292,140.1,139.99,6.4335]
[1763386441989,0.04919375,140.06,139.99,6.4335]
[1763386442189,99.9474,140.18,139.99,6.4335]
[1763386442401,99.9474,140.18,140.0,8.33579431]
[1763386442900,89.8071,140.22,140.04,8.33579431]
[1763386443100,89.8071,140.22,140.05,3.03]
[1763386443294,89.8071,140.22,140.12,0.04986559]
[1763386443295,0.0533502,140.15,140.12,0.04986559]
[1763386443501,0.05365805,140.15,140.12,0.04986559]
[1763386443991,0.05365805,140.15,140.12,3.07986559]
[1763386445199,0.05365805,140.15,140.12,0.04986559]
[1763386446503,0.05365805,140.15,140.12,3.07986559]
[1763386447510,0.05365805,140.15,140.12,0.04986559]